fUSD/lending_fUSD_20241221
["ID","MTS","AMOUNT","RATE_DAILY","PERIOD"]
[346165454,1734762660629,-500.0,0.00021941,2]
[346165455,1734762660639,-500.0,0.00021941,2]
[346165456,1734762660648,-500.0,0.00021941,2]
[346165457,1734762660657,-647.96,0.00021941,2]
[346165458,1734762660667,-637.20796849,0.00021941,2]
[346165459,1734762660676,-2608.29,0.00021941,2]
[346165460,1734762660686,-1121.25,0.00021941,2]
[346165461,1734762660696,-1245.39,0.00021941,2]
[346165462,1734762660706,-500.0,0.00021941,2]
[346165463,1734762660715,-788.01,0.00021941,2]
[346165464,1734762660725,-1899.18,0.00021941,2]
[346165465,1734762660735,-1386.91,0.00021941,2]
[346165466,1734762660745,-6741.73,0.00021941,2]
[346165467,1734762660754,-2335.79,0.00021941,2]
[346165468,1734762660764,-1032.91,0.00021941,2]
[346165469,1734762660774,-500.0,0.00021942,2]
[346165470,1734762660790,-500.0,0.00021942,2]
[346165471,1734762660801,-500.0,0.00021942,2]
[346165472,1734762660810,-500.0,0.00021942,2]
[346165473,1734762660820,-500.0,0.00021942,2]
[346165474,1734762660830,-500.0,0.00021942,2]
[346165475,1734762660839,-500.0,0.00021942,2]
[346165476,1734762660848,-500.0,0.00021942,2]
[346165477,1734762660857,-500.0,0.00021942,2]
[346165478,1734762660867,-507.28656186,0.00021942,2]
[346165479,1734762660876,-500.0,0.00021942,2]
[346165480,1734762660888,-500.0,0.00021942,2]
[346165481,1734762660897,-500.0,0.00021942,2]
[346165482,1734762660907,-500.0,0.00021942,2]
[346165483,1734762660916,-500.0,0.00021942,2]
[346165484,1734762660927,-522.70758351,0.00021942,2]
[346165485,1734762660936,-564.66,0.00021942,2]
[346165486,1734762660946,-500.0,0.00021942,2]
[346165487,1734762660955,-520.42589562,0.00021942,2]
[346165488,1734762660967,-500.0,0.00021942,2]
[346165489,1734762660977,-500.0,0.00021942,2]
[346165490,1734762660986,-500.0,0.00021942,2]
[346165491,1734762660995,-500.0,0.00021942,2]
[346165492,1734762661005,-500.0,0.00021942,2]
[346165493,1734762661014,-500.0,0.00021942,2]
[346165494,1734762661023,-500.0,0.00021942,2]
[346165495,1734762661035,-500.0,0.00021942,2]
[346165496,1734762661045,-500.0,0.00021942,2]
[346165497,1734762661055,-500.0,0.00021942,2]
[346165498,1734762661064,-500.0,0.00021942,2]
[346165499,1734762661073,-500.0,0.00021942,2]
[346165500,1734762661082,-500.0,0.00021942,2]
[346165501,1734762661091,-500.0,0.00021942,2]
[346165502,1734762661100,-500.0,0.00021942,2]
[346165503,1734762661110,-559.70070409,0.00021942,2]
[346165504,1734762661120,-500.0,0.00021942,2]
[346165505,1734762661131,-500.0,0.00021942,2]
[346165506,1734762661139,-584.16925731,0.00021942,2]
[346165507,1734762661150,-500.0,0.00021942,2]
[346165508,1734762661160,-500.0,0.00021942,2]
[346165509,1734762661169,-500.0,0.00021942,2]
[346165510,1734762661179,-500.0,0.00021942,2]
[346165511,1734762661188,-500.0,0.00021942,2]
[346165512,1734762661198,-500.0,0.00021942,2]
[346165513,1734762661206,-545.1,0.00021942,2]
[346165514,1734762661215,-500.0,0.00021942,2]
[346165515,1734762661226,-500.0,0.00021942,2]
[346165516,1734762661235,-500.0,0.00021942,2]
[346165517,1734762661246,-372.1434176,0.00021942,2]
[346165518,1734762661254,-500.0,0.00021942,2]
[346165519,1734762661264,-201.49063989,0.00021942,2]
[346165520,1734762661272,-500.0,0.00021942,2]
[346165521,1734762661284,-642.27213086,0.00021942,2]
[346165522,1734762661293,-662.37,0.00021942,2]
[346165523,1734762661302,-500.0,0.00021942,2]
[346165524,1734762661312,-500.0,0.00021942,2]
[346165525,1734762661321,-320.66045132,0.00021942,2]
[346165526,1734762661331,-659.76,0.00021942,2]
[346165527,1734762661340,-500.0,0.00021942,2]
[346165528,1734762661349,-500.0,0.00021942,2]
[346165529,1734762661359,-500.0,0.00021942,2]
[346165530,1734762661369,-669.24,0.00021942,2]
[346165531,1734762661378,-500.0,0.00021942,2]
[346165532,1734762661387,-500.0,0.00021942,2]
[346165533,1734762661396,-716.57,0.00021942,2]
[346165534,1734762661405,-500.0,0.00021942,2]
[346165535,1734762661415,-604.12,0.00021942,2]
[346165536,1734762661425,-388.25151854,0.00021942,2]
[346165537,1734762661434,-504.42,0.00021942,2]
[346165538,1734762661443,-500.0,0.00021942,2]
[346165539,1734762661452,-500.0,0.00021942,2]
[346165540,1734762661461,-500.0,0.00021942,2]
[346165541,1734762661470,-500.0,0.00021942,2]
[346165542,1734762661480,-500.0,0.00021942,2]
[346165543,1734762661490,-500.0,0.00021942,2]
[346165544,1734762661500,-500.0,0.00021942,2]
[346165545,1734762661509,-541.52822835,0.00021942,2]
[346165546,1734762661518,-687.48,0.00021942,2]
[346165547,1734762661530,-1000.0,0.00021942,30]
[346165548,1734762661539,-807.05,0.00021942,2]
[346165549,1734762661549,-500.0,0.00021942,2]
[346165550,1734762661557,-500.0,0.00021942,2]
[346165551,1734762661567,-568.83,0.00021942,2]
[346165552,1734762661576,-433.60316617,0.00021942,2]
[346165553,1734762661586,-500.0,0.00021942,2]
[346165554,1734762661596,-1137.49,0.00021942,2]
[346165555,1734762661605,-528.28,0.00021942,2]
[346165556,1734762661615,-500.0,0.00021942,2]
[346165557,1734762661624,-500.0,0.00021942,2]
[346165558,1734762661634,-535.82,0.00021942,2]
[346165559,1734762661643,-520.39,0.00021942,2]
[346165560,1734762661652,-758.02,0.00021942,2]
[346165561,1734762661662,-500.0,0.00021942,2]
[346165562,1734762661671,-766.99,0.00021942,2]
[346165563,1734762661681,-500.0,0.00021942,2]
[346165564,1734762661690,-500.0,0.00021942,2]
[346165565,1734762661700,-500.0,0.00021942,2]
[346165566,1734762661709,-500.0,0.00021942,2]
[346165567,1734762661718,-500.0,0.00021942,2]
[346165568,1734762661727,-504.74,0.00021942,2]
[346165569,1734762661736,-510.79627414,0.00021942,2]
[346165570,1734762661746,-500.0,0.00021942,2]
[346165571,1734762661755,-1029.63,0.00021942,2]
[346165572,1734762661765,-529.52470132,0.00021942,2]
[346165573,1734762661775,-500.0,0.00021942,2]
[346165574,1734762661787,-500.0,0.00021942,2]
[346165575,1734762661797,-500.0,0.00021942,2]
[346165576,1734762661807,-611.01,0.00021942,2]
[346165577,1734762661817,-500.0,0.00021942,2]
[346165578,1734762661827,-500.0,0.00021942,2]
[346165579,1734762661837,-515.04,0.00021942,2]
[346165580,1734762661846,-640.01,0.00021942,2]
[346165581,1734762661855,-500.0,0.00021942,2]
[346165582,1734762661865,-505.9802566,0.00021942,2]
[346165583,1734762661875,-500.0,0.00021942,2]
[346165584,1734762661892,-706.47,0.00021942,2]
[346165585,1734762661901,-500.0,0.00021942,2]
[346165586,1734762661911,-500.0,0.00021942,2]
[346165587,1734762661920,-500.0,0.00021942,2]
[346165588,1734762661931,-716.24,0.00021942,2]
[346165589,1734762661939,-500.0,0.00021942,2]
[346165590,1734762661949,-978.76,0.00021942,2]
[346165591,1734762661960,-500.0,0.00021942,2]
[346165592,1734762661969,-500.0,0.00021942,2]
[346165593,1734762661979,-500.0,0.00021942,2]
[346165594,1734762661989,-500.0,0.00021942,2]
[346165595,1734762661999,-500.0,0.00021942,2]
[346165596,1734762662008,-500.0,0.00021942,2]
[346165597,1734762662017,-500.0,0.00021942,2]
[346165598,1734762662026,-500.0,0.00021942,2]
[346165599,1734762662038,-500.0,0.00021942,2]
[346165600,1734762662048,-500.0,0.00021942,2]
[346165601,1734762662057,-1126.57,0.00021942,2]
[346165602,1734762662067,-510.23649797,0.00021942,2]
[346165603,1734762662076,-500.0,0.00021942,2]
[346165604,1734762662086,-658.57,0.00021942,2]
[346165605,1734762662095,-513.89,0.00021942,2]
[346165606,1734762662105,-806.59,0.00021942,2]
[346165607,1734762662114,-500.0,0.00021942,2]
[346165608,1734762662123,-500.0,0.00021942,2]
[346165609,1734762662132,-500.0,0.00021942,2]
[346165610,1734762662142,-949.92,0.00021942,2]
[346165611,1734762662151,-862.92,0.00021942,2]
[346165612,1734762662160,-500.0,0.00021942,2]
[346165613,1734762662169,-1094.54,0.00021942,2]
[346165614,1734762662179,-500.0,0.00021942,2]
[346165615,1734762662188,-500.0,0.00021942,2]
[346165616,1734762662197,-500.0,0.00021942,2]
[346165617,1734762662207,-500.0,0.00021942,2]
[346165618,1734762662216,-500.0,0.00021942,2]
[346165619,1734762662226,-500.0,0.00021942,2]
[346165620,1734762662236,-500.0,0.00021942,2]
[346165621,1734762662245,-609.66,0.00021942,2]
[346165622,1734762662254,-578.0,0.00021942,2]
[346165623,1734762662263,-500.0,0.00021942,2]
[346165624,1734762662273,-888.96,0.00021942,2]
[346165625,1734762662283,-500.0,0.00021942,2]
[346165626,1734762662293,-500.0,0.00021942,2]
[346165627,1734762662302,-500.0,0.00021942,2]
[346165628,1734762662312,-500.0,0.00021942,2]
[346165629,1734762662321,-500.0,0.00021942,2]
[346165630,1734762662331,-503.99505382,0.00021942,2]
[346165631,1734762662340,-500.0,0.00021942,2]
[346165632,1734762662350,-500.0,0.00021942,2]
[346165633,1734762662359,-500.0,0.00021942,2]
[346165634,1734762662369,-500.0,0.00021942,2]
[346165635,1734762662379,-812.35,0.00021942,2]
[346165636,1734762662388,-500.0,0.00021942,2]
[346165637,1734762662397,-500.0,0.00021942,2]
[346165638,1734762662406,-502.08,0.00021942,2]
[346165639,1734762662415,-500.0,0.00021942,2]
[346165640,1734762662425,-500.0,0.00021942,2]
[346165641,1734762662435,-607.33,0.00021942,2]
[346165642,1734762662444,-500.0,0.00021942,2]
[346165643,1734762662453,-412.9920032,0.00021942,2]
[346165644,1734762662462,-697.2,0.00021942,2]
[346165645,1734762662471,-500.0,0.00021942,2]
[346165646,1734762662481,-1126.91,0.00021942,2]
[346165647,1734762662490,-7280.05,0.00021942,2]
[346165648,1734762662500,-500.0,0.00021942,2]
[346165649,1734762662509,-500.0,0.00021942,2]
[346165650,1734762662519,-500.0,0.00021942,2]
[346165651,1734762662530,-1605.56,0.00021942,2]
[346165652,1734762662539,-500.0,0.00021942,2]
[346165653,1734762662549,-831.81,0.00021942,2]
[346165654,1734762662559,-500.0,0.00021942,2]
[346165655,1734762662568,-500.0,0.00021942,2]
[346165656,1734762662577,-500.0,0.00021942,2]
[346165657,1734762662587,-1088.39,0.00021942,2]
[346165658,1734762662596,-500.0,0.00021942,2]
[346165659,1734762662605,-1414.7,0.00021942,2]
[346165660,1734762662615,-2004.44,0.00021942,2]
[346165661,1734762662624,-500.0,0.00021942,2]
[346165662,1734762662633,-857.46,0.00021942,2]
[346165663,1734762662643,-500.0,0.00021942,2]
[346165664,1734762662651,-500.0,0.00021942,2]
[346165665,1734762662660,-3951.27,0.00021942,2]
[346165666,1734762662669,-1756.77,0.00021942,2]
[346165667,1734762662678,-500.0,0.00021942,2]
[346165668,1734762662688,-500.0,0.00021942,2]
[346165669,1734762662697,-500.0,0.00021942,2]
[346165670,1734762662707,-3839.14,0.00021942,2]
[346165671,1734762662716,-500.0,0.00021942,2]
[346165672,1734762662727,-4550.25,0.00021942,2]
[346165673,1734762662736,-500.0,0.00021942,2]
[346165674,1734762662745,-500.0,0.00021942,2]
[346165675,1734762662755,-500.0,0.00021942,2]
[346165676,1734762662765,-500.0,0.00021942,2]
[346165677,1734762662776,-500.0,0.00021942,2]
[346165678,1734762662788,-380.81675253,0.00021942,2]
[346165679,1734762662799,-500.0,0.00021942,2]
[346165680,1734762662808,-500.0,0.00021942,2]
[346165681,1734762662818,-500.0,0.00021942,2]
[346165682,1734762662827,-500.0,0.00021942,2]
[346165683,1734762662837,-607.24,0.00021942,2]
[346165684,1734762662846,-3696.52,0.00021942,2]
[346165685,1734762662855,-984.06,0.00021942,2]
[346165686,1734762662865,-537.49622392,0.00021942,2]
[346165687,1734762662874,-500.0,0.00021942,2]
[346165688,1734762662885,-1407.29,0.00021942,2]
[346165689,1734762662895,-503.70004453,0.00021942,2]
[346165690,1734762662905,-500.0,0.00021942,2]
[346165691,1734762662915,-500.0,0.00021942,2]
[346165692,1734762662924,-500.0,0.00021942,2]
[346165693,1734762662934,-500.0,0.00021942,2]
[346165694,1734762662945,-500.0,0.00021942,2]
[346165695,1734762662956,-2999.94,0.00021942,2]
[346165696,1734762662968,-3106.35,0.00021942,2]
[346165697,1734762662977,-500.0,0.00021942,2]
[346165698,1734762662987,-500.0,0.00021942,2]
[346165699,1734762662997,-500.0,0.00021942,2]
[346165700,1734762663006,-1036.05,0.00021942,2]
[346165701,1734762663015,-500.0,0.00021942,2]
[346165702,1734762663025,-500.0,0.00021942,2]
[346165703,1734762663036,-798.83,0.00021942,2]
[346165704,1734762663047,-500.0,0.00021942,2]
[346165705,1734762663057,-516.64,0.00021942,2]
[346165706,1734762663066,-3735.43,0.00021942,2]
[346165707,1734762663076,-500.0,0.00021942,2]
[346165708,1734762663086,-723.58,0.00021942,2]
[346165709,1734762663096,-728.98,0.00021942,2]
[346165710,1734762663105,-500.0,0.00021942,2]
[346165711,1734762663115,-1019.24,0.00021942,2]
[346165712,1734762663124,-500.0,0.00021942,2]
[346165713,1734762663134,-1102.65,0.00021942,2]
[346165714,1734762663144,-794.04,0.00021942,2]
[346165715,1734762663154,-1138.9,0.00021942,2]
[346165716,1734762663163,-1430.94,0.00021942,2]
[346165717,1734762663173,-500.0,0.00021942,2]
[346165718,1734762663182,-500.0,0.00021942,2]
[346165719,1734762663192,-964.36,0.00021942,2]
[346165720,1734762663202,-500.0,0.00021942,2]
[346165721,1734762663212,-1552.92,0.00021942,2]
[346165722,1734762663223,-500.0,0.00021942,2]
[346165723,1734762663233,-500.0,0.00021942,2]
[346165724,1734762663243,-500.0,0.00021942,2]
[346165725,1734762663252,-927.04,0.00021942,2]
[346165726,1734762663262,-1276.64,0.00021942,2]
[346165727,1734762663272,-500.0,0.00021942,2]
[346165728,1734762663281,-500.0,0.00021942,2]
[346165729,1734762663291,-500.0,0.00021942,2]
[346165730,1734762663301,-500.0,0.00021942,2]
[346165731,1734762663312,-1121.11,0.00021942,2]
[346165732,1734762663322,-500.0,0.00021942,2]
[346165733,1734762663332,-500.0,0.00021942,2]
[346165734,1734762663341,-500.0,0.00021942,2]
[346165735,1734762663351,-500.0,0.00021942,2]
[346165736,1734762663360,-500.0,0.00021942,2]
[346165737,1734762663370,-1064.2,0.00021942,2]
[346165738,1734762663380,-2196.67,0.00021942,2]
[346165739,1734762663390,-500.0,0.00021942,2]
[346165740,1734762663399,-500.0,0.00021942,2]
[346165741,1734762663409,-500.0,0.00021942,2]
[346165742,1734762663419,-1196.09,0.00021942,2]
[346165743,1734762663429,-1921.07,0.00021942,2]
[346165744,1734762663439,-500.0,0.00021942,2]
[346165745,1734762663449,-500.0,0.00021942,2]
[346165746,1734762663459,-796.27,0.00021942,2]
[346165747,1734762663468,-4024.68,0.00021942,2]
[346165748,1734762663479,-500.0,0.00021942,2]
[346165749,1734762663488,-346.60064315,0.00021942,2]
[346165750,1734762663499,-500.0,0.00021942,2]
[346165751,1734762663509,-500.0,0.00021942,2]
[346165752,1734762663519,-2898.52,0.00021942,2]
[346165753,1734762663528,-500.0,0.00021942,2]
[346165754,1734762663539,-500.0,0.00021942,2]
[346165755,1734762663549,-500.0,0.00021942,2]
[346165756,1734762663559,-500.0,0.00021942,2]
[346165757,1734762663569,-500.0,0.00021942,2]
[346165758,1734762663580,-5761.58,0.00021942,2]
[346165759,1734762663590,-500.0,0.00021942,2]
[346165760,1734762663600,-569.51,0.00021942,2]
[346165761,1734762663610,-500.0,0.00021942,2]
[346165762,1734762663620,-500.0,0.00021942,2]
[346165763,1734762663630,-599.96,0.00021942,2]
[346165764,1734762663639,-500.0,0.00021942,2]
[346165765,1734762663649,-763.04,0.00021942,2]
[346165766,1734762663659,-2296.3,0.00021942,2]
[346165767,1734762663668,-502.22461848,0.00021942,2]
[346165768,1734762663678,-528.37,0.00021942,2]
[346165769,1734762663687,-547.53,0.00021942,2]
[346165770,1734762663697,-500.0,0.00021942,2]
[346165771,1734762663707,-705.86,0.00021942,2]
[346165772,1734762663717,-500.0,0.00021942,2]
[346165773,1734762663727,-500.0,0.00021942,2]
[346165774,1734762663736,-510.18086894,0.00021942,2]
[346165775,1734762663745,-949.95,0.00021942,2]
[346165776,1734762663755,-500.0,0.00021942,2]
[346165777,1734762663765,-540.73985475,0.00021942,2]
[346165778,1734762663775,-500.0,0.00021942,2]
[346165779,1734762663786,-500.0,0.00021942,2]
[346165780,1734762663796,-500.0,0.00021942,2]
[346165781,1734762663806,-500.0,0.00021942,2]
[346165782,1734762663816,-500.0,0.00021942,2]
[346165783,1734762663827,-260.83297247,0.00021943,2]
[346165784,1734762663836,-502.05227973,0.00021943,2]
[346165785,1734762663847,-500.0,0.00021943,2]
[346165786,1734762663857,-328.70109905,0.00021943,2]
[346165787,1734762663867,-500.0,0.00021943,2]
[346165788,1734762663877,-500.0,0.00021943,2]
[346165789,1734762663889,-807.82,0.00021943,2]
[346165790,1734762663899,-500.0,0.00021943,2]
[346165791,1734762663909,-218.46026678,0.00021943,2]
[346165792,1734762663919,-500.0,0.00021943,2]
[346165793,1734762663930,-500.0,0.00021943,2]
[346165794,1734762663940,-500.0,0.00021943,2]
[346165795,1734762663951,-500.0,0.00021943,2]
[346165796,1734762663960,-539.8,0.00021943,2]
[346165797,1734762663972,-500.0,0.00021943,2]
[346165798,1734762663982,-547.12960082,0.00021943,2]
[346165799,1734762663992,-500.0,0.00021943,2]
[346165800,1734762664001,-500.0,0.00021943,2]
[346165801,1734762664012,-505.85623494,0.00021943,2]
[346165802,1734762664021,-500.0,0.00021943,2]
[346165803,1734762664033,-500.0,0.00021943,2]
[346165804,1734762664044,-500.0,0.00021943,2]
[346165805,1734762664053,-508.78604634,0.00021943,2]
[346165806,1734762664063,-500.0,0.00021943,2]
[346165807,1734762664073,-500.0,0.00021943,2]
[346165808,1734762664083,-500.0,0.00021943,2]
[346165809,1734762664093,-500.0,0.00021943,2]
[346165810,1734762664103,-573.6524261,0.00021943,2]
[346165811,1734762664112,-500.0,0.00021943,2]
[346165812,1734762664123,-500.0,0.00021943,2]
[346165813,1734762664132,-500.0,0.00021943,2]
[346165814,1734762664142,-500.0,0.00021943,2]
[346165815,1734762664152,-500.0,0.00021943,2]
[346165816,1734762664162,-500.0,0.00021943,2]
[346165817,1734762664172,-500.0,0.00021943,2]
[346165818,1734762664182,-678.61,0.00021943,2]
[346165819,1734762664192,-500.0,0.00021943,2]
[346165820,1734762664202,-500.0,0.00021943,2]
[346165821,1734762664212,-500.0,0.00021943,2]
[346165822,1734762664222,-500.0,0.00021943,2]
[346165823,1734762664232,-500.0,0.00021943,2]
[346165824,1734762664242,-500.0,0.00021943,2]
[346165825,1734762664252,-500.0,0.00021943,2]
[346165826,1734762664262,-500.0,0.00021943,2]
[346165827,1734762664271,-500.0,0.00021943,2]
[346165828,1734762664283,-500.0,0.00021943,2]
[346165829,1734762664293,-500.0,0.00021943,2]
[346165830,1734762664303,-500.0,0.00021943,2]
[346165831,1734762664312,-500.0,0.00021943,2]
[346165832,1734762664323,-500.0,0.00021943,2]
[346165833,1734762664333,-500.0,0.00021943,2]
[346165834,1734762664343,-520.11,0.00021943,2]
[346165835,1734762664352,-791.11,0.00021943,2]
[346165836,1734762664362,-500.0,0.00021943,2]
[346165837,1734762664372,-500.0,0.00021943,2]
[346165838,1734762664382,-500.0,0.00021943,2]
[346165839,1734762664391,-500.0,0.00021943,2]
[346165840,1734762664401,-500.0,0.00021943,2]
[346165841,1734762664411,-500.0,0.00021943,2]
[346165842,1734762664421,-500.0,0.00021943,2]
[346165843,1734762664431,-500.0,0.00021943,2]
[346165844,1734762664440,-500.0,0.00021943,2]
[346165845,1734762664450,-500.0,0.00021943,2]
[346165846,1734762664460,-500.0,0.00021943,2]
[346165847,1734762664470,-500.0,0.00021943,2]
[346165848,1734762664480,-500.0,0.00021943,2]
[346165849,1734762664490,-828.79,0.00021943,2]
[346165850,1734762664499,-518.60933708,0.00021943,2]
[346165851,1734762664510,-500.0,0.00021943,2]
[346165852,1734762664520,-500.0,0.00021943,2]
[346165853,1734762664530,-685.6,0.00021943,2]
[346165854,1734762664541,-840.52,0.00021943,2]
[346165855,1734762664551,-709.51,0.00021943,2]
[346165856,1734762664561,-500.0,0.00021943,2]
[346165857,1734762664571,-500.0,0.00021943,2]
[346165858,1734762664581,-500.0,0.00021943,2]
[346165859,1734762664591,-500.0,0.00021943,2]
[346165860,1734762664601,-218.38314702,0.00021943,2]
[346165861,1734762664611,-500.0,0.00021943,2]
[346165862,1734762664620,-701.1,0.00021943,2]
[346165863,1734762664630,-500.0,0.00021943,2]
[346165864,1734762664639,-500.0,0.00021943,2]
[346165865,1734762664649,-500.0,0.00021943,2]
[346165866,1734762664659,-725.66,0.00021943,2]
[346165867,1734762664669,-500.0,0.00021943,2]
[346165868,1734762664679,-500.0,0.00021943,2]
[346165869,1734762664688,-500.0,0.00021943,2]
[346165870,1734762664698,-1143.13,0.00021943,2]
[346165871,1734762664707,-500.0,0.00021943,2]
[346165872,1734762664717,-500.0,0.00021943,2]
[346165873,1734762664727,-500.0,0.00021943,2]
[346165874,1734762664736,-500.0,0.00021943,2]
[346165875,1734762664746,-603.15,0.00021943,2]
[346165876,1734762664756,-678.78,0.00021943,2]
[346165877,1734762664765,-241.14771146,0.00021943,2]
[346165878,1734762664775,-500.0,0.00021943,2]
[346165879,1734762664786,-500.0,0.00021943,2]
[346165880,1734762664796,-841.91,0.00021943,2]
[346165881,1734762664806,-649.52,0.00021943,2]
[346165882,1734762664816,-500.0,0.00021943,2]
[346165883,1734762664826,-500.0,0.00021943,2]
[346165884,1734762665036,-500.0,0.00021943,2]
[346165885,1734762665047,-502.93,0.00021943,2]
[346165886,1734762665057,-656.01,0.00021943,2]
[346165887,1734762665067,-500.0,0.00021943,2]
[346165888,1734762665077,-500.0,0.00021943,2]
[346165889,1734762665087,-500.0,0.00021943,2]
[346165890,1734762665096,-500.0,0.00021943,2]
[346165891,1734762665106,-685.45,0.00021943,2]
[346165892,1734762665116,-500.0,0.00021943,2]
[346165893,1734762665125,-500.0,0.00021943,2]
[346165894,1734762665135,-500.0,0.00021943,2]
[346165895,1734762665144,-500.0,0.00021943,2]
[346165896,1734762665154,-535.87,0.00021943,2]
[346165897,1734762665163,-500.0,0.00021943,2]
[346165898,1734762665173,-500.0,0.00021943,2]
[346165899,1734762665182,-500.0,0.00021943,2]
[346165900,1734762665192,-654.05,0.00021943,2]
[346165901,1734762665201,-500.0,0.00021943,2]
[346165902,1734762665211,-500.0,0.00021943,2]
[346165903,1734762665220,-686.75,0.00021943,2]
[346165904,1734762665233,-1881.81085736,0.00021943,2]
[346165905,1734762665243,-500.0,0.00021943,2]
[346165906,1734762665252,-500.0,0.00021943,2]
[346165907,1734762665262,-500.0,0.00021943,2]
[346165908,1734762665272,-500.0,0.00021943,2]
[346165909,1734762665281,-500.0,0.00021943,2]
[346165910,1734762665294,-752.24,0.00021943,2]
[346165911,1734762665303,-500.0,0.00021943,2]
[346165912,1734762665313,-500.0,0.00021943,2]
[346165913,1734762665323,-838.97,0.00021943,2]
[346165914,1734762665332,-244.98943752,0.00021943,2]
[346165915,1734762665342,-584.97,0.00021943,2]
[346165916,1734762665352,-862.22,0.00021943,2]
[346165917,1734762665361,-500.0,0.00021943,2]
[346165918,1734762665371,-500.0,0.00021943,2]
[346165919,1734762665380,-500.0,0.00021943,2]
[346165920,1734762665390,-500.0,0.00021943,2]
[346165921,1734762665399,-500.0,0.00021943,2]
[346165922,1734762665409,-1083.25,0.00021943,2]
[346165923,1734762665419,-500.0,0.00021943,2]
[346165924,1734762665428,-500.0,0.00021943,2]
[346165925,1734762665438,-1191.44,0.00021943,2]
[346165926,1734762665448,-500.0,0.00021943,2]
[346165927,1734762665458,-500.0,0.00021943,2]
[346165928,1734762665467,-500.0,0.00021943,2]
[346165929,1734762665477,-507.01731652,0.00021943,2]
[346165930,1734762665486,-644.53,0.00021943,2]
[346165931,1734762665495,-938.83,0.00021943,2]
[346165932,1734762665505,-832.26,0.00021943,2]
[346165933,1734762665514,-500.0,0.00021943,2]
[346165934,1734762665524,-502.92956581,0.00021943,2]
[346165935,1734762665535,-500.0,0.00021943,2]
[346165936,1734762665545,-1185.23,0.00021943,2]
[346165937,1734762665555,-1190.69,0.00021943,2]
[346165938,1734762665564,-873.43,0.00021943,2]
[346165939,1734762665573,-799.54,0.00021943,2]
[346165940,1734762665583,-887.53,0.00021943,2]
[346165941,1734762665593,-631.09,0.00021943,2]
[346165942,1734762665602,-500.0,0.00021943,2]
[346165943,1734762665612,-1335.02,0.00021943,2]
[346165944,1734762665622,-970.43,0.00021943,2]
[346165945,1734762665631,-1403.65,0.00021943,2]
[346165946,1734762665641,-500.0,0.00021943,2]
[346165947,1734762665650,-517.39,0.00021944,2]
[346165948,1734762665660,-500.0,0.00021944,2]
[346165949,1734762665670,-500.0,0.00021944,2]
[346165950,1734762665680,-500.0,0.00021944,2]
[346165951,1734762665689,-500.0,0.00021944,2]
[346165952,1734762665699,-853.87,0.00021944,2]
[346165953,1734762665708,-616.56,0.00021944,2]